Workbook

Sheet Feuil2
A1: الرقم | B1: تاريخ العملية | C1: اسم المنتوج | D1: الكمية | E1: سعر البيع | F1: خصم | G1: المجموع

Sheet Feuil1
A1: الرقم | B1: تاريخ العملية | C1: اسم المنتوج | D1: الكمية | E1: سعر البيع | F1: خصم | G1: المجموع | H1: 2022-03-29
A2: =IF(C2<>0,1,"") -> 1 | B2: =IF(C2<>0,TODAY(),"") -> 2022-03-29 | C2: فيلتر 1000 ل | D2: 1 | E2: =IF(C2<>0,(VLOOKUP(C2,[1]Feuil2!$B$3:$E$271,4,0)),"") -> 1300 | F2: 100 | G2: =IF(C2<>0,((E2*D2)-F2),"") -> 1200
A3: =IF(C3<>0,A2+1,"") -> 2 | B3: 2022-03-29 | C3: فايتر 1 | D3: 1 | E3: =IF(C3<>0,(VLOOKUP(C3,[1]Feuil2!$B$3:$E$271,4,0)),"") -> 600 | G3: 600
A4: 3 | B4: 2022-03-29 | C4: فايتر 3 | D4: 1 | E4: =IF(C4<>0,(VLOOKUP(C4,[1]Feuil2!$B$3:$E$271,4,0)),"") -> 350 | G4: 350
A5: 4 | B5: 2022-03-29 | C5: سخان 100w | D5: 1 | E5: =IF(C5<>0,(VLOOKUP(C5,[1]Feuil2!$B$3:$E$271,4,0)),"") -> 850 | F5: 50 | G5: 800
A6: 5 | B6: 2022-03-29 | C6: فيلتر صغير | D6: 1 | E6: =IF(C6<>0,(VLOOKUP(C6,[1]Feuil2!$B$3:$E$271,4,0)),"") -> 750 | F6: 50 | G6: 700
A7: 6 | B7: 2022-03-29 | C7: سخان ماء | D7: 1 | E7: =IF(C7<>0,(VLOOKUP(C7,[1]Feuil2!$B$3:$E$271,4,0)),"") -> 250 | F7: 50 | G7: 200
A8: 7 | B8: 2022-03-29 | C8: ديفيزور | D8: 2 | E8: =IF(C8<>0,(VLOOKUP(C8,[1]Feuil2!$B$3:$E$271,4,0)),"") -> 30 | G8: 60
A9: 8 | B9: 2022-03-29 | C9: بوقال 2 | D9: 1 | E9: =IF(C9<>0,(VLOOKUP(C9,[1]Feuil2!$B$3:$E$271,4,0)),"") -> 1450 | F9: 50 | G9: 1400
A10: 9 | B10: 2022-03-29 | C10: فايتر 1 | D10: 1 | E10: =IF(C10<>0,(VLOOKUP(C10,[1]Feuil2!$B$3:$E$271,4,0)),"") -> 600 | G10: 600
A11: 10 | B11: 2022-03-29 | C11: اكل اسماك كبيرة | D11: 1 | E11: =IF(C11<>0,(VLOOKUP(C11,[1]Feuil2!$B$3:$E$271,4,0)),"") -> 150 | F11: 50 | G11: 100
A12: 11 | B12: 2022-03-29 | C12: اعشاب اصطناعية ك | D12: 2 | E12: =IF(C12<>0,(VLOOKUP(C12,[1]Feuil2!$B$3:$E$271,4,0)),"") -> 150 | G12: 300
A13: 12 | B13: 2022-03-29 | C13: كيم برايقة | D13: 1 | E13: =IF(C13<>0,(VLOOKUP(C13,[1]Feuil2!$B$3:$E$271,4,0)),"") -> 200 | G13: 200
A14: 13 | B14: 2022-03-29 | C14: صابل حجارة رفيعة | D14: 1 | E14: =IF(C14<>0,VLOOKUP(C14,[1]Feuil2!$B$3:$E$271,4,0),"") -> 250 | F14: 50 | G14: 200
